[Event "58th Akiba Rubinstein D 2022"]
[Site "Polanica-Zdroj"]
[Date "2022.08.17"]
[Round "5.29"]
[White "Wilgosz, Jan"]
[Black "Grudzinski, Krzysztof"]
[Result "1-0"]
[ECO "B46"]
[WhiteElo "1597"]
[BlackElo "1520"]
[Annotator "NA RC"]
[PlyCount "67"]
[EventDate "2022.08.13"]
[EventCountry "POL"]
[SourceTitle "playchess.com"]
[Source "ChessBase"]
[SourceQuality "1"]
[TimeControl "40/5400+30:1800+30"]

1. e4 {[%emt 0:05:35]} c5 {[%emt 0:00:10]} 2. Nc3 {[%emt 0:00:22]} Nc6 {[%emt 0:00:30]} 3. Nf3 {[%emt 0:00:56]} e6 {[%emt 0:00:28]} 4. d4 {[%emt 0:00:12]} cxd4 {[%emt 0:00:23]} 5. Nxd4 {[%emt 0:00:06]} a6 {[%emt 0:03:20]} 6. Be2 {[%emt 0:01:37]} Qc7 {[%emt 0:00:58]} 7. O-O {[%emt 0:01:35]} Nf6 {[%emt 0:00:37]} 8. Be3 {[%emt 0:03:20]} Be7 {[%emt 0:05:12]} 9. f4 {[%emt 0:01:47]} d6 {[%emt 0:00:23]} 10. Kh1 {[%emt 0:02:39]} O-O {[%emt 0:11:09]} 11. a4 Bd7 {[%emt 0:06:16]} 12. Nb3 {[%emt 0:04:54]} Na5 {[%emt 0:08:34]} 13. Nxa5 {[%emt 0:09:45]} Qxa5 {[%emt 0:00:13]} 14. Bf3 {[%emt 0:02:51]} Bc6 {[%emt 0:04:41]} 15. g4 {[%emt 0:21:40]} Qb4 {[%emt 0:23:18]} 16. Qd4 Qxd4 {[%emt 0:08:09]} 17. Bxd4 {[%emt 0:00:36]} Nd7 {[%emt 0:01:06]} 18. Be3 {[%emt 0:05:26]} Rfc8 {[%emt 0:03:54]} 19. g5 {[%emt 0:03:05]} b6 {[%emt 0:01:32]} 20. h4 {[%emt 0:06:18]} Bb7 {[%emt 0:04:36]} 21. Rad1 {[%emt 0:05:02]} Rc7 {[%emt 0:04:17]} 22. f5 {[%emt 0:05:03]} Nc5 {[%emt 0:04:01]} 23. Bg2 {[%emt 0:04:27]} Bf8 {[%emt 0:01:30]} 24. Bf4 {[%emt 0:02:45]} e5 {[%emt 0:03:11]} 25. Be3 {[%emt 0:00:22]} Rac8 {[%emt 0:00:45]} 26. Rf2 {[%emt 0:01:10]} Ba8 {[%emt 0:01:00]} 27. Rdf1 {[%emt 0:00:43]} Nd7 {[%emt 0:01:13]} 28. f6 {[%emt 0:02:50]} Nc5 {[%emt 0:00:31]} 29. h5 {[%emt 0:01:03]} Ne6 30. Bh3 {[%emt 0:02:39]} Rxc3 {[%emt 0:02:39]} 31. bxc3 {[%emt 0:01:15]} Bxe4+ {[%emt 0:00:33]} 32. Kh2 {[%emt 0:00:45]} Rxc3 {[%emt 0:00:39]} 33. Bxe6 {[%emt 0:00:46]} Rxe3 {[%emt 0:00:37]} 34. fxg7 {[%emt 0:01:45]} 1-0

[Event "58th Akiba Rubinstein D 2022"]
[Site "Polanica-Zdroj"]
[Date "2022.08.17"]
[Round "5.30"]
[White "Soszka, Szymon"]
[Black "Wolska, Marta"]
[Result "1-0"]
[ECO "E70"]
[WhiteElo "1355"]
[BlackElo "1588"]
[Annotator "NA RC"]
[PlyCount "71"]
[EventDate "2022.08.13"]
[EventCountry "POL"]
[SourceTitle "playchess.com"]
[Source "ChessBase"]
[SourceQuality "1"]
[TimeControl "40/5400+30:1800+30"]

1. d4 {[%emt 0:05:04]} Nf6 {[%emt 0:00:10]} 2. c4 g6 {[%emt 0:03:28]} 3. Nc3 {[%emt 0:00:10]} Bg7 {[%emt 0:00:07]} 4. e4 {[%emt 0:00:04]} d6 {[%emt 0:00:04]} 5. Bg5 {[%emt 0:00:06]} Nbd7 {[%emt 0:07:11]} 6. Bd3 {[%emt 0:00:19]} O-O {[%emt 0:00:15]} 7. Nge2 {[%emt 0:00:04]} e5 {[%emt 0:12:31]} 8. d5 {[%emt 0:00:05]} Rb8 {[%emt 0:02:45]} 9. O-O {[%emt 0:00:56]} a6 {[%emt 0:00:04]} 10. a4 {[%emt 0:00:04]} Qe8 {[%emt 0:01:15]} 11. Qd2 {[%emt 0:09:44]} Nc5 {[%emt 0:04:55]} 12. Bc2 {[%emt 0:00:18]} Nh5 {[%emt 0:03:24]} 13. b4 {[%emt 0:04:57]} Nd7 {[%emt 0:01:14]} 14. g4 {[%emt 0:01:15]} Nhf6 {[%emt 0:00:16]} 15. h3 {[%emt 0:00:17]} h5 {[%emt 0:01:53]} 16. f3 {[%emt 0:00:59]} Kh7 {[%emt 0:06:31]} 17. Ng3 {[%emt 0:03:53]} Rh8 {[%emt 0:01:27]} 18. gxh5 {[%emt 0:00:27]} Nxh5 {[%emt 0:00:56]} 19. Nxh5 {[%emt 0:00:03]} gxh5 {[%emt 0:00:13]} 20. Kh2 {[%emt 0:00:47]} f6 {[%emt 0:02:47]} 21. Be3 {[%emt 0:00:22]} Nb6 {[%emt 0:01:49]} 22. Bb3 {[%emt 0:01:30]} Qd7 {[%emt 0:01:12]} 23. Qg2 {[%emt 0:00:14]} Bh6 {[%emt 0:04:01]} 24. Rg1 Qf7 {[%emt 0:05:49]} 25. Bxh6 {[%emt 0:02:59]} Kxh6 {[%emt 0:00:21]} 26. Qd2+ {[%emt 0:00:36]} Kh7 {[%emt 0:00:08]} 27. f4 {[%emt 0:00:08]} f5 {[%emt 0:05:17]} 28. fxe5 {[%emt 0:00:32]} dxe5 {[%emt 0:00:40]} 29. c5 {[%emt 0:00:15]} Na8 {[%emt 0:02:49]} 30. Rg5 {[%emt 0:01:37]} Bd7 {[%emt 0:01:42]} 31. Qe2 {[%emt 0:03:11]} Kh6 {[%emt 0:01:02]} 32. d6 {[%emt 0:00:46]} Qe8 {[%emt 0:00:52]} 33. Rag1 {[%emt 0:00:38]} f4 {[%emt 0:02:03]} 34. Bd1 {[%emt 0:00:07]} Bg4 {[%emt 0:01:23]} 35. R1xg4 {[%emt 0:00:13]} hxg4 {[%emt 0:00:21]} 36. Qxg4 {[%emt 0:00:03]} 1-0

[Event "58th Akiba Rubinstein D 2022"]
[Site "Polanica-Zdroj"]
[Date "2022.08.18"]
[Round "6.1"]
[White "Gibala, Adam"]
[Black "Lewandrowski, Tomasz"]
[Result "1/2-1/2"]
[ECO "B32"]
[WhiteElo "1549"]
[BlackElo "1902"]
[Annotator "TA"]
[PlyCount "68"]
[EventDate "2022.08.13"]
[EventCountry "POL"]
[SourceTitle "playchess.com"]
[Source "ChessBase"]
[SourceQuality "1"]
[TimeControl "40/5400+30:1800+30"]

{[%evp 14,68,31,35,44,38,36,20,19,0,10,-16,-15,-22,-7,-7,-6,-32,20,12,19,-13,-27,-47,0,0,0,0,0,-16,0,-18,-5,-15,4,-2,0,0,0,0,0,0,0,-2,0,0,0,-2,0,0,0,0,0,-2,-2,-2,-2]} 1. e4 {[%emt 0:00:01]} c5 {[%emt 0:00:01]} 2. Nf3 {[%emt 0:00:08][%cal Bg1f3,Bf3d4,Bd4b5,Bb5a3,Ba3c4][%mdl 32]} Nc6 {[%emt 0:00:01]} 3. d4 {[%emt 0:00:07]} cxd4 {[%emt 0:00:01]} 4. Nxd4 {[%emt 0:00:09]} e5 5. Nb5 {[%emt 0:00:11]} d6 {[%emt 0:00:06]} 6. N1c3 {[%emt 0:00:04]} a6 {[%emt 0:00:12]} 7. Na3 {[%emt 0:00:12]} Be7 {[%emt 0:00:21]} 8. Nc4 {[%emt 0:00:09]} b5 {[%emt 0:00:19] B32: Sicilian: Löwenthal and Kalashnikov Variations.} 9. Ne3 {[%emt 0:00:06]} ({But not} 9. Qd5 Bb7 10. Ne3 Nf6 $11) 9... Nf6 {[%emt 0:00:59]} 10. Ned5 {[%emt 0:00:52]} O-O {[%emt 0:02:36]} 11. Nxf6+ {[%emt 0:01:13]} Bxf6 {[%emt 0:00:34]} 12. g3 {[%emt 0:00:18]} Be6 {[%emt 0:05:47]} 13. Bg2 {[%emt 0:00:17]} Rc8 {[%emt 0:02:24]} (13... b4 $5 {[%cal Rb4c3]} 14. Nd5 Bxd5 15. exd5 Nd4 $11) 14. Nd5 {[%emt 0:00:16] [#]} b4 $146 {[%emt 0:06:44]} ({Predecessor:} 14... Bg5 15. O-O Bxc1 16. Rxc1 Bxd5 17. exd5 Ne7 18. Qe2 Rc5 19. Rcd1 Qb6 20. Kh1 Rc7 {½-½ (73) Kiolbasa,O (2255)-Leniart,A (2499) Suwalki 2021}) 15. Be3 {[%emt 0:02:01]} Bxd5 {[%emt 0:05:13]} (15... Bg5 $15) 16. exd5 $11 {[%emt 0:00:14]} Nd4 {[%emt 0:00:06]} 17. Bxd4 {[%emt 0:00:08]} exd4 {[%emt 0:00:02]} 18. O-O {[%emt 0:00:14][%cal Be1g1,Bg1f1,Bf1g2][%mdl 32]} Re8 {[%emt 0:07:03] Inhibits Be4.} (18... d3 $15 19. Qxd3 Bxb2) 19. Qd3 {[%emt 0:01:53] The position is equal.} a5 {[%emt 0:00:55]} 20. Rfe1 {[%emt 0:00:39]} g6 {[%emt 0:02:41]} 21. Kf1 {[%emt 0:02:20]} Kg7 {[%emt 0:01:03]} 22. Be4 {[%emt 0:02:48]} Rc7 {[%emt 0:09:53]} 23. Re2 {[%emt 0:02:14]} Rce7 {[%emt 0:00:46]} 24. Rae1 {[%emt 0:00:19]} Qb6 {[%emt 0:01:51]} (24... Qd7 {looks sharper.} 25. h4 h5 26. Qa6 a4) 25. Kg2 {[%emt 0:01:22]} Qc5 {[%emt 0:02:24]} 26. f4 {[%emt 0:02:06]} a4 {[%emt 0:02:22]} 27. h4 {[%emt 0:00:45]} a3 {[%emt 0:03:34]} 28. b3 {[%emt 0:00:15]} Qc3 {[%emt 0:02:16]} 29. Qxc3 {[%emt 0:00:11]} dxc3 {[%emt 0:01:10]} 30. Bd3 {[%emt 0:01:12]} Rxe2+ {[%emt 0:02:52]} 31. Rxe2 {[%emt 0:00:01]} Rxe2+ {[%emt 0:00:09]} 32. Bxe2 {[%emt 0:00:05]} h5 {[%emt 0:00:14]} 33. Kf3 {[%emt 0:02:11]} Bd4 {[%emt 0:02:03]} 34. Bd3 {[%emt 0:00:21]} f5 {[%emt 0:00:20] Weighted Error Value: White=0.07 (flawless) /Black=0.10 (very precise)} 1/2-1/2

[Event "58th Akiba Rubinstein D 2022"]
[Site "Polanica-Zdroj"]
[Date "2022.08.18"]
[Round "6.2"]
[White "Meizlin, Yaacov"]
[Black "Wilgosz, Szczepan"]
[Result "1-0"]
[ECO "A22"]
[WhiteElo "1938"]
[BlackElo "1530"]
[Annotator "RC"]
[PlyCount "115"]
[EventDate "2022.08.13"]
[EventCountry "POL"]
[SourceTitle "playchess.com"]
[Source "ChessBase"]
[SourceQuality "1"]
[TimeControl "40/5400+30:1800+30"]

1. c4 {[%emt 0:00:10]} e5 {[%emt 0:00:13]} 2. Nc3 {[%emt 0:00:06]} Nf6 {[%emt 0:00:48]} 3. g3 {[%emt 0:00:16]} Bb4 {[%emt 0:01:05]} 4. Bg2 {[%emt 0:00:49]} O-O {[%emt 0:00:44]} 5. Nf3 {[%emt 0:02:11]} Re8 {[%emt 0:07:17]} 6. Nd5 {[%emt 0:02:13]} Nxd5 {[%emt 0:03:43]} 7. cxd5 {[%emt 0:01:38]} d6 {[%emt 0:09:31]} 8. O-O {[%emt 0:01:29]} c6 {[%emt 0:06:29]} 9. dxc6 {[%emt 0:08:27]} Nxc6 {[%emt 0:01:18]} 10. d4 {[%emt 0:00:48]} e4 {[%emt 0:01:29]} 11. Ne1 {[%emt 0:07:38]} Bxe1 {[%emt 0:10:47]} 12. Rxe1 {[%emt 0:00:14]} d5 {[%emt 0:00:12]} 13. Be3 {[%emt 0:07:00]} Bf5 {[%emt 0:07:26]} 14. Qd2 {[%emt 0:02:37]} Rc8 {[%emt 0:09:35]} 15. Rac1 {[%emt 0:01:38]} Qb6 {[%emt 0:10:04]} 16. Rc5 {[%emt 0:01:07]} Ne7 {[%emt 0:02:33]} 17. Rec1 {[%emt 0:04:56]} Qe6 {[%emt 0:06:16]} 18. Qb4 {[%emt 0:11:37]} b6 {[%emt 0:01:44]} 19. Rc7 {[%emt 0:00:24]} Rxc7 {[%emt 0:01:24]} 20. Rxc7 {[%emt 0:00:04]} Nc6 {[%emt 0:00:40]} 21. Qb5 {[%emt 0:00:16]} Na5 {[%emt 0:03:21]} 22. Rxa7 {[%emt 0:03:37]} Bg4 {[%emt 0:02:05]} 23. h3 {[%emt 0:02:04]} Bh5 {[%emt 0:00:39]} 24. g4 {[%emt 0:05:09]} Bg6 {[%emt 0:00:49]} 25. Bf4 {[%emt 0:00:47]} Rc8 {[%emt 0:04:18]} 26. Qd7 {[%emt 0:07:57]} Nc6 {[%emt 0:04:48]} 27. Qxe6 {[%emt 0:03:28]} fxe6 {[%emt 0:00:01]} 28. Rc7 {[%emt 0:03:02]} Rxc7 {[%emt 0:00:11]} 29. Bxc7 {[%emt 0:00:01]} Nxd4 {[%emt 0:00:23]} 30. Bxb6 {[%emt 0:01:56]} Nxe2+ {[%emt 0:00:09]} 31. Kh2 {[%emt 0:10:40]} Nc1 {[%emt 0:01:27]} 32. a4 {[%emt 0:00:43]} Be8 {[%emt 0:00:28]} 33. a5 {[%emt 0:00:18]} Bb5 {[%emt 0:00:50]} 34. f3 {[%emt 0:02:33]} Bd3 {[%emt 0:02:05]} 35. fxe4 {[%emt 0:00:11]} dxe4 {[%emt 0:00:09]} 36. Kg3 {[%emt 0:01:08]} e5 {[%emt 0:02:05]} 37. Kf2 {[%emt 0:00:21]} Kf7 {[%emt 0:01:15]} 38. Ke3 {[%emt 0:00:10]} Nb3 {[%emt 0:00:35]} 39. Bxe4 {[%emt 0:00:26]} Bc4 {[%emt 0:00:24]} 40. h4 {[%emt 0:02:34]} h6 {[%emt 0:00:38]} 41. Bc2 {[%emt 0:30:55]} Na1 {[%emt 0:30:31]} 42. Ba4 {[%emt 0:00:32]} Ke6 {[%emt 0:00:29]} 43. b4 {[%emt 0:00:09]} Kd6 {[%emt 0:00:28]} 44. b5 {[%emt 0:00:10]} Kd7 {[%emt 0:00:33]} 45. a6 {[%emt 0:01:25]} Kc8 {[%emt 0:00:21]} 46. Ke4 {[%emt 0:00:28]} Be2 {[%emt 0:00:37]} 47. Kxe5 {[%emt 0:00:35]} Bd3 {[%emt 0:00:29]} 48. Bd4 {[%emt 0:02:05]} Nc2 {[%emt 0:00:11]} 49. Bxc2 {[%emt 0:00:22]} Bxc2 {[%emt 0:00:08]} 50. Kd6 {[%emt 0:01:29]} g6 {[%emt 0:00:39]} 51. Kc5 {[%emt 0:01:13]} Bd3 {[%emt 0:00:34]} 52. Be5 {[%emt 0:00:28]} h5 {[%emt 0:00:53]} 53. g5 {[%emt 0:00:26]} Be2 {[%emt 0:00:27]} 54. Kb6 {[%emt 0:00:12]} Bf3 {[%emt 0:00:22]} 55. Ka7 {[%emt 0:00:14]} Kd7 {[%emt 0:00:37]} 56. b6 {[%emt 0:00:08]} Ke6 {[%emt 0:00:18]} 57. Bf6 {[%emt 0:00:18]} Kf5 {[%emt 0:00:09]} 58. b7 {[%emt 0:00:06]} 1-0

[Event "58th Akiba Rubinstein D 2022"]
[Site "Polanica-Zdroj"]
[Date "2022.08.18"]
[Round "6.3"]
[White "Kraczek, Cezary"]
[Black "Penza, Denis"]
[Result "1-0"]
[ECO "C08"]
[WhiteElo "1657"]
[BlackElo "1836"]
[Annotator "NA RC"]
[PlyCount "110"]
[EventDate "2022.08.13"]
[EventCountry "POL"]
[SourceTitle "playchess.com"]
[Source "ChessBase"]
[SourceQuality "1"]
[TimeControl "40/5400+30:1800+30"]

1. e4 {[%emt 0:00:07]} e6 {[%emt 0:00:12]} 2. d4 {[%emt 0:00:17]} d5 {[%emt 0:00:10]} 3. Nd2 {[%emt 0:00:32]} c5 {[%emt 0:00:52]} 4. exd5 {[%emt 0:01:19]} exd5 {[%emt 0:00:05]} 5. Bb5+ {[%emt 0:01:23]} Nc6 {[%emt 0:00:24]} 6. Qe2+ {[%emt 0:06:46]} Be7 {[%emt 0:02:52]} 7. dxc5 {[%emt 0:03:51]} Nf6 {[%emt 0:00:14]} 8. Ngf3 {[%emt 0:02:05]} O-O {[%emt 0:00:19]} 9. Bxc6 {[%emt 0:01:24]} bxc6 {[%emt 0:00:06]} 10. O-O {[%emt 0:04:38]} Bxc5 {[%emt 0:01:03]} 11. Nb3 {[%emt 0:01:25]} Re8 {[%emt 0:02:00]} 12. Qd3 {[%emt 0:01:34]} Bb6 $17 {[%emt 0:06:00]} 13. Bg5 {[%emt 0:05:52]} Bg4 {[%emt 0:01:41]} 14. Rfe1 {[%emt 0:02:40]} Qd6 {[%emt 0:06:55]} 15. Rad1 {[%emt 0:05:47]} Bh5 {[%emt 0:14:36]} 16. Nbd4 {[%emt 0:12:28]} Bg6 {[%emt 0:12:06]} 17. Qd2 {[%emt 0:11:17]} Re4 {[%emt 0:12:54]} 18. Rxe4 {[%emt 0:08:33]} Nxe4 {[%emt 0:03:43]} 19. Qf4 {[%emt 0:01:29]} Qb4 {[%emt 0:06:32]} 20. Nxc6 {[%emt 0:04:02]} Qxb2 {[%emt 0:06:42]} 21. Ne7+ {[%emt 0:04:28]} Kh8 {[%emt 0:00:58]} 22. Nxg6+ {[%emt 0:01:48]} fxg6 {[%emt 0:00:38]} 23. Rf1 {[%emt 0:06:09]} Qxc2 {[%emt 0:04:43]} 24. Bh4 {[%emt 0:03:00]} Qxa2 {[%emt 0:04:17]} 25. Ne5 {[%emt 0:00:38]} Qa3 {[%emt 0:04:43]} 26. Qf7 {[%emt 0:01:12]} Qd6 {[%emt 0:04:15]} 27. Qb7 {[%emt 0:01:04]} Rf8 {[%emt 0:02:14]} 28. Nf7+ {[%emt 0:00:31]} Rxf7 {[%emt 0:00:08]} 29. Qxf7 {[%emt 0:00:11]} h6 {[%emt 0:01:51]} 30. Rd1 {[%emt 0:02:17]} Nc3 {[%emt 0:01:20]} 31. Re1 {[%emt 0:00:44]} Ne4 {[%emt 0:00:44]} 32. Rc1 {[%emt 0:03:06]} g5 {[%emt 0:00:37]} 33. Rc8+ {[%emt 0:00:24]} Kh7 {[%emt 0:00:02]} 34. Qf5+ {[%emt 0:00:34]} Qg6 {[%emt 0:00:58]} 35. Rh8+ {[%emt 0:00:05]} Kxh8 {[%emt 0:00:06]} 36. Qxg6 {[%emt 0:00:05]} gxh4 {[%emt 0:00:08]} 37. Qh5 {[%emt 0:01:50]} Nxf2 {[%emt 0:01:04]} 38. Kf1 {[%emt 0:00:46]} h3 {[%emt 0:00:33]} 39. gxh3 {[%emt 0:00:52]} Ne4 {[%emt 0:00:40]} 40. Qxd5 {[%emt 0:00:18]} Nf6 {[%emt 0:00:30]} 41. Qa8+ {[%emt 0:30:20]} Kh7 {[%emt 0:30:09]} 42. Kg2 {[%emt 0:00:35]} Kg6 {[%emt 0:00:47]} 43. Kf3 {[%emt 0:00:37]} h5 {[%emt 0:00:25]} 44. Qb7 {[%emt 0:00:39]} Kh6 {[%emt 0:00:42]} 45. h4 {[%emt 0:01:37]} Kg6 {[%emt 0:00:17]} 46. h3 {[%emt 0:00:33]} Kh6 {[%emt 0:00:24]} 47. Qc8 {[%emt 0:01:09]} Kg6 {[%emt 0:00:33]} 48. Qc2+ {[%emt 0:00:16]} Kf7 {[%emt 0:00:32]} 49. Kf4 {[%emt 0:00:31]} Nd5+ {[%emt 0:00:40]} 50. Ke5 {[%emt 0:00:37]} Nf6 {[%emt 0:00:29]} 51. Qb3+ {[%emt 0:00:36]} Kg6 {[%emt 0:00:23]} 52. Ke6 {[%emt 0:00:20]} Kh6 {[%emt 0:00:42]} 53. Kf7 {[%emt 0:00:43]} Ne4 {[%emt 0:00:31]} 54. Qe6+ {[%emt 0:00:24]} Nf6 {[%emt 0:00:27]} 55. Qf5 {[%emt 0:00:10]} Ng8 {[%emt 0:00:32]} 1-0

[Event "58th Akiba Rubinstein D 2022"]
[Site "Polanica-Zdroj"]
[Date "2022.08.18"]
[Round "6.4"]
[White "Jasiulewicz, Dawid"]
[Black "Liskiewicz, Jakub"]
[Result "1-0"]
[ECO "D37"]
[WhiteElo "1525"]
[BlackElo "1910"]
[Annotator "NA RC"]
[PlyCount "93"]
[EventDate "2022.08.13"]
[EventCountry "POL"]
[SourceTitle "playchess.com"]
[Source "ChessBase"]
[SourceQuality "1"]
[TimeControl "40/5400+30:1800+30"]

1. d4 {[%emt 0:00:05]} Nf6 {[%emt 0:00:08]} 2. Nf3 {[%emt 0:00:07]} d5 {[%emt 0:00:06]} 3. c4 {[%emt 0:00:08]} e6 {[%emt 0:01:27]} 4. Nc3 {[%emt 0:00:15]} Be7 {[%emt 0:01:04]} 5. e3 {[%emt 0:00:29]} O-O {[%emt 0:00:13]} 6. Bd3 {[%emt 0:00:06]} c6 {[%emt 0:00:28]} 7. O-O {[%emt 0:00:22]} Nbd7 {[%emt 0:00:31]} 8. e4 {[%emt 0:00:13]} dxe4 {[%emt 0:00:18]} 9. Nxe4 {[%emt 0:00:07]} Nxe4 {[%emt 0:02:53]} 10. Bxe4 {[%emt 0:00:05]} Nf6 {[%emt 0:00:42]} 11. Bc2 {[%emt 0:00:07]} c5 {[%emt 0:01:09]} 12. Qd3 {[%emt 0:03:25]} h6 {[%emt 0:04:21]} 13. Bf4 {[%emt 0:03:09]} Qb6 {[%emt 0:09:44]} 14. Rad1 {[%emt 0:04:48]} Rd8 {[%emt 0:03:25]} (14... Qxb2 $2 15. Rb1 Qxa2 16. Ra1 $18) 15. Rfe1 {[%emt 0:02:16]} ({But not} 15. dxc5 $6 Rxd3 16. cxb6 Rxd1 17. Rxd1 axb6 $14) 15... cxd4 {[%emt 0:07:25]} 16. b3 {[%emt 0:17:04]} Bd7 {[%emt 0:03:52]} 17. Ne5 {[%emt 0:02:12]} ({Much weaker is} 17. Qxd4 Bc5 18. Qd2 Bb4 $15) 17... Be8 {[%emt 0:06:34]} 18. Ng4 {[%emt 0:08:41]} h5 {[%emt 0:10:20]} 19. Nxf6+ {[%emt 0:04:52]} Bxf6 {[%emt 0:00:12]} 20. Qh7+ {[%emt 0:00:52]} Kf8 {[%emt 0:00:08]} 21. Qxh5 {[%emt 0:03:21]} Rac8 {[%emt 0:04:56]} 22. h4 {[%emt 0:03:55]} Rc5 {[%emt 0:03:14]} 23. Qh7 {[%emt 0:04:52]} Bc6 $18 {[%emt 0:10:37]} (23... Ke7 $142 24. g4 d3) 24. h5 {[%emt 0:05:18]} Ke7 {[%emt 0:04:02]} 25. Rd3 {[%emt 0:06:19]} Bg5 {[%emt 0:03:23]} 26. Bg3 {[%emt 0:06:36]} Qa5 {[%emt 0:01:09]} 27. Rdd1 {[%emt 0:06:27]} Bf6 {[%emt 0:08:38]} 28. Bf4 {[%emt 0:00:25]} Rxh5 {[%emt 0:00:20]} 29. Bd2 {[%emt 0:01:00]} Qe5 {[%emt 0:01:21]} 30. Bb4+ {[%emt 0:03:03]} Kd7 {[%emt 0:00:15]} 31. Rxd4+ {[%emt 0:02:15]} Qxd4 {[%emt 0:02:05]} 32. Qxh5 {[%emt 0:00:36]} g6 {[%emt 0:00:31]} 33. Qh7 {[%emt 0:01:14]} Kc8 {[%emt 0:02:10]} 34. Qxf7 {[%emt 0:01:08]} Rh8 {[%emt 0:00:47]} 35. Qxe6+ {[%emt 0:01:10]} Bd7 {[%emt 0:00:17]} 36. Qe4 {[%emt 0:01:26]} Qb6 {[%emt 0:00:23]} 37. c5 {[%emt 0:03:17]} Qc7 {[%emt 0:00:19]} 38. Re3 {[%emt 0:01:48]} Qh2+ {[%emt 0:02:05]} 39. Kf1 {[%emt 0:00:01]} Rh4 {[%emt 0:02:09]} 40. Qxg6 {[%emt 0:01:46]} Bd8 {[%emt 0:00:42]} 41. Be4 {[%emt 0:31:07]} Bb5+ {[%emt 0:30:43]} 42. Ke1 {[%emt 0:00:14]} Qg1+ {[%emt 0:00:08]} 43. Kd2 {[%emt 0:00:18]} Qxf2+ {[%emt 0:00:07]} 44. Kd1 {[%emt 0:00:43]} Qxe3 {[%emt 0:01:23]} 45. Qe6+ {[%emt 0:00:27]} Kb8 {[%emt 0:00:11]} 46. Qd6+ {[%emt 0:00:08]} Kc8 {[%emt 0:00:55]} 47. Bf5+ {[%emt 0:00:04]} 1-0

[Event "58th Akiba Rubinstein D 2022"]
[Site "Polanica-Zdroj"]
[Date "2022.08.18"]
[Round "6.5"]
[White "Galuszka, Kamil"]
[Black "Grzebieniowski, Michal"]
[Result "1-0"]
[ECO "B13"]
[WhiteElo "1976"]
[BlackElo "1710"]
[Annotator "TA"]
[PlyCount "69"]
[EventDate "2022.08.13"]
[EventCountry "POL"]
[SourceTitle "playchess.com"]
[Source "ChessBase"]
[SourceQuality "1"]
[TimeControl "40/5400+30:1800+30"]

{[%evp 11,69,10,16,17,17,5,14,13,68,81,88,54,70,47,42,45,55,39,45,36,71,67,157,168,167,163,166,168,326,126,130,125,128,72,109,107,226,196,207,212,428,413,439,418,512,506,564,561,539,539,539,534,752,779,777,698,29992,993,1504,1495]} 1. e4 {[%emt 0:00:03]} c6 {[%emt 0:00:03]} 2. d4 {[%emt 0:00:07]} d5 {[%emt 0:00:03]} 3. exd5 {[%emt 0:00:39]} cxd5 {[%emt 0:00:01]} 4. Bd3 {[%emt 0:00:16]} g6 {[%emt 0:00:08]} 5. Ne2 {[%emt 0:00:32]} Nc6 {[%emt 0:00:08]} 6. c3 {[%emt 0:00:12]} Nf6 {[%emt 0:01:37]} 7. O-O {[%emt 0:01:34] B13: Caro-Kann: Exchange Variation and Panov-Botvinnik Attack.} Bg7 {[%emt 0:00:04]} 8. Re1 {[%emt 0:05:16]} O-O {[%emt 0:00:07]} 9. Nd2 {[%emt 0:01:11] [#] The position is equal.} Bf5 $146 {[%emt 0:01:01]} (9... e5 $11) ({Predecessor:} 9... Re8 10. Nf4 Qd6 11. Nf3 Bg4 12. h3 Bxf3 13. Qxf3 e5 14. dxe5 Nxe5 15. Qd1 Nxd3 16. Nxd3 Rxe1+ 17. Nxe1 {½-½ (36) Jacek,M (2180)-Hosek,M (2265) Czech Republic 2001}) 10. Bxf5 $14 {[%emt 0:08:16]} gxf5 {[%emt 0:00:02]} 11. Ng3 {[%emt 0:02:08]} e6 {[%emt 0:00:06]} 12. Nh5 {[%emt 0:00:23]} Nxh5 {[%emt 0:00:11]} 13. Qxh5 {[%emt 0:00:01]} Qf6 {[%emt 0:04:38]} 14. Nf1 {[%emt 0:12:21]} (14. Nb3) 14... Kh8 {[%emt 0:06:09]} 15. Re3 {[%emt 0:06:23]} Rg8 {[%emt 0:01:25]} 16. Rg3 {[%emt 0:03:42]} Bf8 {[%emt 0:00:48]} (16... Rae8 $14) 17. Bg5 $1 $16 {[%emt 0:04:41]} ({Reject} 17. Rh3 $6 Qg6 18. Qxg6 Rxg6 $11) 17... Qg6 {[%emt 0:00:32]} 18. Qh4 {[%emt 0:09:16] Strongly threatening Bf6+.} Bg7 {[%emt 0:00:27] Inhibits Bf6.} 19. Re1 $1 {[%emt 0:02:53]} f6 $2 {[%emt 0:01:58]} (19... a6 20. a3 a5) 20. Bf4 $2 {[%emt 0:01:13]} (20. Bd2 $18 Qe8 21. Rh3) 20... Qf7 {[%emt 0:00:47] [#]} 21. Rh3 $1 {[%emt 0:05:02][%csl Gh3][%cal Rh4h7] White is more active.} Bf8 {[%emt 0:00:27]} 22. f3 {[%emt 0:06:43] Prevents Rg4.} (22. Rxe6 Rg4 23. Qxf6+ (23. Rxf6 Qg7) 23... Qxf6 24. Rxf6 Rxf4) (22. Qh5 Qxh5 23. Rxh5) ({Much less strong is} 22. Rxe6 Rg4 23. Qxf6+ (23. Rxf6 Qg7 $17) 23... Qxf6 24. Rxf6 Rxf4 $14) ({Better is} 22. Ng3) 22... Re8 {[%emt 0:01:47]} 23. Ng3 {[%emt 0:01:22][%cal Og3f5,Bf1g3,Bg3h5,Bh5f4][%mdl 32]} Re7 {[%emt 0:11:30]} (23... e5) (23... e5 $16 {is a better defense.}) 24. Nh5 $40 {[%emt 0:05:58][%mdl 128] White attacks with force.} Rg6 {[%emt 0:01:22] [#]} 25. Bd6 {[%emt 0:00:46]} Re8 {[%emt 0:01:33]} (25... Rh6 {was necessary.} 26. Bxe7 Bxe7) 26. Bxf8 $18 {[%emt 0:00:05]} Rxf8 {[%emt 0:00:05]} 27. Nf4 $1 {[%emt 0:00:05][%csl LRe6,LRg6]} Rgg8 {[%emt 0:00:59]} 28. Rxe6 {[%emt 0:02:57]} Qg7 {[%emt 0:01:02]} 29. Rg3 {[%emt 0:03:48]} Qf7 {[%emt 0:00:07]} 30. Rxg8+ {[%emt 0:00:04]} Kxg8 {[%emt 0:00:23]} 31. Qe1 {[%emt 0:00:04]} Rd8 {[%emt 0:00:09]} 32. b4 {[%emt 0:00:51]} a6 {[%emt 0:00:10]} 33. a4 {[%emt 0:00:01]} Qc7 {[%emt 0:00:24]} 34. Qg3+ {[%emt 0:00:39]} (34. Re8+ $142 Kg7 35. Qg3+ Kh6 36. Qh4+ Kg7 37. Ne6+ Kg6 38. Nf8+ Kf7 39. Qh5+ Kg8 40. Ne6+ Rxe8 41. Qxe8#) 34... Kf7 {[%emt 0:00:37] [#]} 35. Rxf6+ $3 {[%emt 0:00:09][%mdl 512] Weighted Error Value: White=0.14 (very precise) /Black=0.65} 1-0